[Event "Shanghai COITCT 2019"]
[Site "Shanghai"]
[Date "2019.09.15"]
[Round "1.11"]
[White "Kobalia, Mikhail"]
[Black "Kurbonboeva, Sarvinoz"]
[Result "1/2-1/2"]
[ECO "B76"]
[WhiteElo "2608"]
[BlackElo "2262"]
[Annotator "ChessBase"]
[PlyCount "66"]
[EventDate "2019.09.15"]
[EventType "team-tourn"]
[EventCountry "CHN"]
[SourceTitle "playchess.com"]
[Source "ChessBase"]
[SourceQuality "1"]
[TimeControl "1500+10"]

1. e4 {[%emt 0:00:00]} c5 {[%emt 0:00:00]} 2. Nf3 {[%emt 0:00:00]} d6 {[%emt 0:00:00]} 3. d4 {[%emt 0:00:03]} cxd4 {[%emt 0:00:00]} 4. Nxd4 {[%emt 0:00:03]} Nf6 {[%emt 0:00:00]} 5. Nc3 {[%emt 0:00:02]} g6 {[%emt 0:00:00]} 6. Be3 {[%emt 0:00:12]} Bg7 {[%emt 0:00:02]} 7. f3 {[%emt 0:00:01]} O-O {[%emt 0:00:13]} 8. Qd2 {[%emt 0:00:02]} Nc6 {[%emt 0:00:06]} 9. g4 {[%emt 0:00:08]} Be6 {[%emt 0:00:46]} 10. O-O-O {[%emt 0:00:04]} Nxd4 {[%emt 0:00:07]} 11. Bxd4 {[%emt 0:00:02]} Qa5 {[%emt 0:00:16]} 12. a3 {[%emt 0:00:04]} Rab8 {[%emt 0:00:17]} 13. h4 {[%emt 0:02:12]} b5 {[%emt 0:00:32]} 14. Nd5 {[%emt 0:00:14]} Qxd2+ {[%emt 0:00:10]} 15. Rxd2 {[%emt 0:00:01]} Bxd5 {[%emt 0:04:18]} 16. exd5 {[%emt 0:00:04]} a5 {[%emt 0:00:02]} 17. Kb1 {[%emt 0:01:13]} Nd7 {[%emt 0:01:34]} 18. Bxg7 {[%emt 0:07:04]} Kxg7 {[%emt 0:00:02]} 19. g5 {[%emt 0:00:23]} h5 {[%emt 0:03:54]} 20. Bh3 {[%emt 0:01:38]} Nc5 {[%emt 0:01:34]} 21. Re1 {[%emt 0:00:06]} b4 {[%emt 0:02:08]} 22. a4 {[%emt 0:03:26]} Nxa4 {[%emt 0:04:53]} 23. Rxe7 {[%emt 0:00:03]} Rfe8 {[%emt 0:00:24]} 24. Rde2 {[%emt 0:00:24]} Kf8 {[%emt 0:00:14]} 25. Rxe8+ {[%emt 0:04:39]} Rxe8 {[%emt 0:00:02]} 26. Rxe8+ {[%emt 0:00:01]} Kxe8 {[%emt 0:00:01]} 27. Ka2 {[%emt 0:00:15]} Nc5 {[%emt 0:02:47]} 28. Bf1 {[%emt 0:00:01]} Ke7 {[%emt 0:01:13]} 29. Be2 {[%emt 0:00:18]} f5 {[%emt 0:00:38]} 30. Bb5 {[%emt 0:01:23]} Kd8 {[%emt 0:00:08]} 31. Bc6 {[%emt 0:00:46]} Ke7 {[%emt 0:00:06]} 32. Bb5 {[%emt 0:00:02]} Kd8 {[%emt 0:00:02]} 33. Bc6 {[%emt 0:00:00]} Ke7 {[%emt 0:00:01]} 1/2-1/2

[Event "Shanghai COITCT 2019"]
[Site "Shanghai"]
[Date "2019.09.15"]
[Round "1.12"]
[White "Baymuratova, Sevara"]
[Black "Murzin, Volodar"]
[Result "0-1"]
[ECO "E95"]
[WhiteElo "2126"]
[BlackElo "2433"]
[Annotator "ChessBase"]
[PlyCount "95"]
[EventDate "2019.09.15"]
[EventType "team-tourn"]
[EventCountry "CHN"]
[SourceTitle "playchess.com"]
[Source "ChessBase"]
[SourceQuality "1"]
[TimeControl "1500+10"]

1. d4 {[%emt 0:00:00]} Nf6 {[%emt 0:00:00]} 2. c4 {[%emt 0:00:00]} g6 {[%emt 0:00:02]} 3. Nc3 {[%emt 0:00:04]} Bg7 {[%emt 0:00:04]} 4. e4 {[%emt 0:00:13]} O-O {[%emt 0:00:07]} 5. Nf3 {[%emt 0:00:34]} d6 {[%emt 0:00:10]} 6. Be2 {[%emt 0:00:05]} Nbd7 {[%emt 0:00:17]} 7. O-O {[%emt 0:00:28]} e5 {[%emt 0:00:16]} 8. Re1 {[%emt 0:01:02]} a6 {[%emt 0:04:09]} 9. Bf1 {[%emt 0:02:33]} Re8 {[%emt 0:00:49]} 10. dxe5 {[%emt 0:04:16]} dxe5 {[%emt 0:00:25]} 11. Bg5 {[%emt 0:00:12]} h6 {[%emt 0:00:41]} 12. Bh4 {[%emt 0:01:17]} c6 {[%emt 0:00:36]} 13. Qc2 {[%emt 0:01:24]} Qe7 {[%emt 0:00:58]} 14. Rad1 {[%emt 0:00:15]} Nf8 {[%emt 0:01:49]} 15. Na4 {[%emt 0:00:45]} Bg4 {[%emt 0:01:18]} 16. Be2 {[%emt 0:02:12]} Bxf3 {[%emt 0:05:46]} 17. Bxf3 {[%emt 0:00:04]} Ne6 {[%emt 0:00:09]} 18. c5 {[%emt 0:01:58]} Nd4 {[%emt 0:01:59]} 19. Qb1 {[%emt 0:01:51]} Qe6 {[%emt 0:02:57]} 20. Nb6 {[%emt 0:01:10]} Rad8 {[%emt 0:00:13]} 21. Be2 {[%emt 0:00:10]} g5 {[%emt 0:02:47]} 22. Bg3 {[%emt 0:00:05]} Nxe2+ {[%emt 0:00:06]} 23. Rxe2 {[%emt 0:00:05]} Qxa2 {[%emt 0:00:07]} 24. Qc1 {[%emt 0:01:12]} Rd4 {[%emt 0:00:58]} 25. Rxd4 {[%emt 0:00:53]} exd4 {[%emt 0:00:02]} 26. f3 {[%emt 0:00:40]} Nd5 {[%emt 0:01:48]} 27. Rd2 {[%emt 0:01:41]} Nxb6 {[%emt 0:00:23]} 28. cxb6 {[%emt 0:00:05]} Rd8 {[%emt 0:00:22]} 29. h4 {[%emt 0:00:09]} d3 {[%emt 0:00:10]} 30. hxg5 {[%emt 0:00:59]} hxg5 {[%emt 0:00:06]} 31. Bf2 {[%emt 0:00:06]} Qb3 {[%emt 0:00:11]} 32. Qc5 {[%emt 0:00:10]} Bf6 {[%emt 0:00:14]} 33. Qf5 {[%emt 0:00:03]} Qe6 {[%emt 0:00:01]} 34. Qa5 {[%emt 0:00:31]} Be7 {[%emt 0:00:10]} 35. Be3 {[%emt 0:00:12]} g4 {[%emt 0:00:07]} 36. Qh5 {[%emt 0:00:20]} Qg6 {[%emt 0:00:10]} 37. fxg4 {[%emt 0:00:49]} Qxe4 {[%emt 0:00:06]} 38. Rf2 {[%emt 0:00:20]} Qg6 {[%emt 0:00:03]} 39. Qe5 {[%emt 0:00:36]} Qe6 {[%emt 0:00:15]} 40. Qf4 {[%emt 0:00:21]} Rd5 {[%emt 0:00:26]} 41. Bd4 {[%emt 0:00:17]} Bg5 {[%emt 0:00:12]} 42. Qb8+ {[%emt 0:01:28]} Rd8 {[%emt 0:00:01]} 43. Qxb7 {[%emt 0:00:05]} d2 {[%emt 0:00:07]} 44. Rf1 {[%emt 0:00:13]} Rxd4 {[%emt 0:00:09]} 45. Qa8+ {[%emt 0:00:07]} Kg7 {[%emt 0:00:14]} 46. b7 {[%emt 0:00:22]} d1=Q {[%emt 0:00:10]} 47. Qa7 {[%emt 0:00:10]} a5 48. Qa6 {[%emt 0:00:10]} 0-1

[Event "Shanghai COITCT 2019"]
[Site "Shanghai"]
[Date "2019.09.15"]
[Round "1.13"]
[White "Xu, Yinglun"]
[Black "Lodhi, Mahmood"]
[Result "1-0"]
[ECO "D30"]
[WhiteElo "2565"]
[BlackElo "2349"]
[Annotator "ChessBase"]
[PlyCount "97"]
[EventDate "2019.09.15"]
[EventType "team-tourn"]
[EventCountry "CHN"]
[SourceTitle "playchess.com"]
[Source "ChessBase"]
[SourceQuality "1"]
[TimeControl "1500+10"]

1. d4 {[%emt 0:00:00]} d5 {[%emt 0:00:00]} 2. c4 {[%emt 0:00:09]} c6 {[%emt 0:00:00]} 3. Nc3 {[%emt 0:00:39]} Nf6 {[%emt 0:00:00]} 4. e3 {[%emt 0:00:04]} e6 {[%emt 0:00:26]} 5. Nf3 {[%emt 0:00:02]} Bd6 {[%emt 0:00:03]} 6. Bd3 {[%emt 0:00:12]} O-O {[%emt 0:00:03]} 7. O-O {[%emt 0:00:06]} Nbd7 {[%emt 0:00:03]} 8. e4 {[%emt 0:00:26]} dxe4 {[%emt 0:00:03]} 9. Nxe4 {[%emt 0:00:02]} Nxe4 {[%emt 0:00:02]} 10. Bxe4 {[%emt 0:00:02]} Nf6 {[%emt 0:00:05]} 11. Bc2 {[%emt 0:00:55]} h6 {[%emt 0:00:03]} 12. b3 {[%emt 0:00:40]} b6 {[%emt 0:00:48]} 13. Bb2 {[%emt 0:01:30]} Bb7 {[%emt 0:00:02]} 14. Qd3 {[%emt 0:00:01]} Re8 {[%emt 0:00:05]} 15. Rfe1 {[%emt 0:00:36]} g6 {[%emt 0:01:04]} 16. Rad1 {[%emt 0:02:31]} Bf8 {[%emt 0:01:11]} 17. Ne5 {[%emt 0:01:49]} Bg7 {[%emt 0:00:37]} 18. Qh3 {[%emt 0:03:37]} Nh7 {[%emt 0:05:35]} 19. Bc1 {[%emt 0:01:09]} Ng5 {[%emt 0:01:29]} 20. Qg3 {[%emt 0:01:41]} Qe7 {[%emt 0:05:43]} 21. f4 {[%emt 0:06:16]} Nh7 {[%emt 0:00:05]} 22. f5 {[%emt 0:00:25]} gxf5 {[%emt 0:01:26]} 23. Bxh6 {[%emt 0:00:10]} Qf6 {[%emt 0:00:03]} 24. Bf4 {[%emt 0:00:52]} Rad8 {[%emt 0:00:43]} 25. b4 {[%emt 0:00:24]} Kh8 {[%emt 0:01:27]} 26. c5 {[%emt 0:00:49]} Rg8 {[%emt 0:01:46]} 27. Qh4 {[%emt 0:00:45]} Rdf8 {[%emt 0:01:03]} 28. Qh5 {[%emt 0:00:17]} Qe7 {[%emt 0:01:13]} 29. Rd3 {[%emt 0:00:30]} Bxe5 {[%emt 0:00:16]} 30. Bxe5+ {[%emt 0:00:20]} f6 {[%emt 0:00:01]} 31. Bd6 {[%emt 0:00:01]} Qe8 {[%emt 0:01:03]} 32. Qh3 {[%emt 0:01:06]} Rf7 {[%emt 0:01:09]} 33. Rde3 {[%emt 0:00:02]} Bc8 {[%emt 0:00:13]} 34. Bxf5 {[%emt 0:00:16]} Rfg7 {[%emt 0:00:19]} 35. g3 {[%emt 0:00:26]} e5 {[%emt 0:01:15]} 36. Bxc8 {[%emt 0:00:13]} Qxc8 {[%emt 0:00:02]} 37. Qxc8 {[%emt 0:00:02]} Rxc8 {[%emt 0:00:01]} 38. dxe5 {[%emt 0:00:01]} Kg8 {[%emt 0:00:15]} 39. e6 {[%emt 0:00:30]} Rb7 {[%emt 0:00:32]} 40. h4 {[%emt 0:00:19]} b5 {[%emt 0:00:23]} 41. Ra3 {[%emt 0:00:27]} Kg7 {[%emt 0:00:24]} 42. Ra6 {[%emt 0:00:10]} f5 {[%emt 0:00:22]} 43. Re5 {[%emt 0:00:52]} Kg6 {[%emt 0:00:08]} 44. Ra3 {[%emt 0:00:21]} Re8 {[%emt 0:00:27]} 45. Rf3 {[%emt 0:00:05]} a5 {[%emt 0:00:05]} 46. a3 {[%emt 0:00:19]} axb4 {[%emt 0:00:02]} 47. axb4 {[%emt 0:00:01]} Ra7 {[%emt 0:00:03]} 48. Rfxf5 {[%emt 0:00:02]} Rxe6 {[%emt 0:00:12]} 49. h5+ {[%emt 0:00:13]} 1-0

[Event "Shanghai COITCT 2019"]
[Site "Shanghai"]
[Date "2019.09.15"]
[Round "1.14"]
[White "Khan, Mohd. Omer"]
[Black "Bai, Jinshi"]
[Result "0-1"]
[ECO "B13"]
[WhiteElo "2273"]
[BlackElo "2591"]
[Annotator "ChessBase"]
[PlyCount "58"]
[EventDate "2019.09.15"]
[EventType "team-tourn"]
[EventCountry "CHN"]
[SourceTitle "playchess.com"]
[Source "ChessBase"]
[SourceQuality "1"]
[TimeControl "1500+10"]

1. e4 {[%emt 0:00:00]} c6 {[%emt 0:00:00]} 2. Nf3 {[%emt 0:00:26]} d5 {[%emt 0:00:06]} 3. exd5 {[%emt 0:00:33]} cxd5 {[%emt 0:00:02]} 4. d4 {[%emt 0:00:07]} Nc6 {[%emt 0:00:10]} 5. Be2 {[%emt 0:00:41]} Bf5 {[%emt 0:00:32]} 6. a3 {[%emt 0:00:58]} e6 {[%emt 0:00:09]} 7. Nc3 {[%emt 0:00:27]} Nf6 {[%emt 0:00:53]} 8. Bg5 {[%emt 0:00:56]} Be7 {[%emt 0:00:48]} 9. O-O {[%emt 0:00:29]} h6 {[%emt 0:00:15]} 10. Bh4 {[%emt 0:00:29]} O-O {[%emt 0:00:06]} 11. Bd3 {[%emt 0:00:55]} Bg4 {[%emt 0:00:03]} 12. Be2 {[%emt 0:00:39]} Bxf3 {[%emt 0:00:54]} 13. Bxf3 {[%emt 0:00:05]} Qb6 {[%emt 0:00:02]} 14. Ne2 {[%emt 0:02:19]} Qxb2 {[%emt 0:00:04]} 15. Rb1 {[%emt 0:00:03]} Qxa3 {[%emt 0:00:04]} 16. Rxb7 {[%emt 0:00:09]} Na5 {[%emt 0:01:37]} 17. Rb1 {[%emt 0:01:57]} Nc4 {[%emt 0:00:06]} 18. Rb3 {[%emt 0:00:32]} Qd6 {[%emt 0:00:04]} 19. Bg3 {[%emt 0:00:08]} Qc6 {[%emt 0:00:02]} 20. Nc1 {[%emt 0:02:07]} Ne4 {[%emt 0:01:29]} 21. Be2 {[%emt 0:01:24]} Ncd2 {[%emt 0:00:42]} 22. Bd3 {[%emt 0:00:31]} Nxf1 {[%emt 0:00:31]} 23. Bxf1 {[%emt 0:00:29]} Rfc8 {[%emt 0:00:36]} 24. Bd3 {[%emt 0:00:05]} a5 {[%emt 0:00:02]} 25. Bb5 {[%emt 0:00:39]} Qxc2 {[%emt 0:00:08]} 26. Qxc2 {[%emt 0:00:04]} Rxc2 {[%emt 0:00:03]} 27. Rb1 {[%emt 0:00:03]} Nc3 {[%emt 0:00:27]} 28. Bd3 {[%emt 0:00:08]} Nxb1 {[%emt 0:00:08]} 29. Bxc2 {[%emt 0:00:03]} Rc8 {[%emt 0:00:02]} 0-1

[Event "Shanghai COITCT 2019"]
[Site "Shanghai"]
[Date "2019.09.15"]
[Round "2.3"]
[White "Antonova, Nadezhda"]
[Black "Waqar, Ahmad Madni"]
[Result "0-1"]
[ECO "A46"]
[WhiteElo "1930"]
[BlackElo "1979"]
[Annotator "NA"]
[PlyCount "67"]
[EventDate "2019.09.15"]
[EventType "team-tourn"]
[EventCountry "CHN"]
[SourceTitle "playchess.com"]
[Source "ChessBase"]
[SourceQuality "1"]
[TimeControl "1500+10"]

1. d4 {[%emt 0:00:00]} Nf6 {[%emt 0:00:00]} 2. Nf3 {[%emt 0:00:06]} e6 {[%emt 0:00:00]} 3. e3 {[%emt 0:00:02]} c5 {[%emt 0:00:04]} 4. Bd3 {[%emt 0:00:06]} cxd4 {[%emt 0:00:02]} 5. exd4 {[%emt 0:00:02]} d5 {[%emt 0:00:03]} 6. O-O {[%emt 0:00:47]} Bd6 {[%emt 0:00:08]} 7. c3 {[%emt 0:01:05]} Nbd7 {[%emt 0:00:06]} 8. Bg5 {[%emt 0:00:28]} Qc7 {[%emt 0:00:06]} 9. Qe2 {[%emt 0:00:45]} b6 {[%emt 0:00:25]} 10. Nbd2 {[%emt 0:00:21]} Bb7 {[%emt 0:00:03]} 11. Rae1 {[%emt 0:00:19]} O-O {[%emt 0:00:45]} 12. Ne5 {[%emt 0:00:30]} Rae8 {[%emt 0:01:34]} 13. f4 {[%emt 0:03:03]} h6 {[%emt 0:01:47]} 14. Bh4 {[%emt 0:01:19]} Be7 {[%emt 0:00:40]} 15. Bg3 {[%emt 0:13:11]} Bd6 {[%emt 0:00:28]} 16. h3 {[%emt 0:00:36]} a6 {[%emt 0:01:25]} 17. a4 {[%emt 0:00:22]} Nh7 {[%emt 0:02:16]} 18. Bxa6 {[%emt 0:01:19]} f5 {[%emt 0:00:38]} 19. Bb5 {[%emt 0:02:27]} Nhf6 {[%emt 0:00:27]} 20. Bh4 {[%emt 0:00:33]} Bxe5 {[%emt 0:00:16]} 21. fxe5 {[%emt 0:00:16]} Ne4 {[%emt 0:00:14]} 22. Nxe4 {[%emt 0:00:26]} dxe4 {[%emt 0:01:28]} 23. g4 {[%emt 0:00:34]} f4 {[%emt 0:00:56]} 24. g5 {[%emt 0:00:09]} hxg5 {[%emt 0:00:16]} 25. Bxg5 {[%emt 0:00:03]} f3 {[%emt 0:00:09]} 26. Qe3 {[%emt 0:00:16]} Rf5 {[%emt 0:00:14]} 27. Kf2 {[%emt 0:00:08]} Bc6 {[%emt 0:00:27]} 28. Rg1 {[%emt 0:00:13]} Bxb5 {[%emt 0:00:20]} 29. axb5 {[%emt 0:00:01]} Nxe5 {[%emt 0:02:39]} 30. dxe5 {[%emt 0:00:06]} Qxe5 {[%emt 0:00:02]} 31. h4 {[%emt 0:00:22]} Qxb5 {[%emt 0:00:04]} 32. Rb1 {[%emt 0:00:11]} Qe5 {[%emt 0:00:20]} 33. Qd4 {[%emt 0:00:09]} Qh2+ {[%emt 0:00:10]} 34. Ke3 {[%emt 0:00:15]} 0-1

[Event "Shanghai COITCT 2019"]
[Site "Shanghai"]
[Date "2019.09.15"]
[Round "2.4"]
[White "Zvjaginsev, Vadim"]
[Black "Xu, Yinglun"]
[Result "1-0"]
[ECO "C07"]
[WhiteElo "2644"]
[BlackElo "2565"]
[Annotator "ChessBase"]
[PlyCount "99"]
[EventDate "2019.09.15"]
[EventType "team-tourn"]
[EventCountry "CHN"]
[SourceTitle "playchess.com"]
[Source "ChessBase"]
[SourceQuality "1"]
[TimeControl "1500+10"]

1. e4 {[%emt 0:00:00]} e6 {[%emt 0:00:00]} 2. d4 {[%emt 0:00:00]} d5 {[%emt 0:00:00]} 3. Nd2 {[%emt 0:00:00]} c5 {[%emt 0:00:26]} 4. exd5 {[%emt 0:00:03]} Qxd5 {[%emt 0:00:05]} 5. Ngf3 {[%emt 0:00:03]} cxd4 {[%emt 0:00:08]} 6. Bc4 {[%emt 0:00:03]} Qd6 {[%emt 0:00:15]} 7. O-O {[%emt 0:00:04]} Nf6 {[%emt 0:00:03]} 8. Nb3 {[%emt 0:00:09]} Nc6 {[%emt 0:00:03]} 9. Bg5 {[%emt 0:00:07]} Be7 {[%emt 0:02:36]} 10. Nbxd4 {[%emt 0:00:12]} Nxd4 {[%emt 0:00:05]} 11. Qxd4 {[%emt 0:00:09]} Qxd4 {[%emt 0:00:28]} 12. Nxd4 {[%emt 0:00:02]} Bd7 {[%emt 0:01:07]} 13. Rfe1 {[%emt 0:00:42]} Rc8 {[%emt 0:00:36]} 14. Bf1 {[%emt 0:01:07]} Nd5 {[%emt 0:02:45]} 15. Bxe7 {[%emt 0:00:19]} Nxe7 {[%emt 0:00:01]} 16. Rad1 {[%emt 0:02:23]} Rc7 {[%emt 0:00:14]} 17. c4 {[%emt 0:03:31]} a6 {[%emt 0:00:36]} 18. f4 {[%emt 0:00:19]} g6 {[%emt 0:00:50]} 19. b3 {[%emt 0:01:55]} Nc6 {[%emt 0:01:00]} 20. Ne2 {[%emt 0:00:06]} Ne7 {[%emt 0:03:30]} 21. Nc3 {[%emt 0:00:16]} Bc6 {[%emt 0:00:06]} 22. b4 {[%emt 0:00:16]} O-O {[%emt 0:01:33]} 23. a4 {[%emt 0:01:09]} b6 {[%emt 0:00:03]} 24. b5 {[%emt 0:00:25]} Bb7 {[%emt 0:00:32]} 25. a5 {[%emt 0:01:20]} Nc8 {[%emt 0:00:02]} 26. Na4 {[%emt 0:00:27]} axb5 {[%emt 0:02:58]} 27. axb6 {[%emt 0:00:12]} Re7 {[%emt 0:00:27]} 28. cxb5 {[%emt 0:00:05]} Bd5 {[%emt 0:00:20]} 29. Rc1 {[%emt 0:01:55]} Bb3 {[%emt 0:01:49]} 30. b7 {[%emt 0:03:33]} Nd6 {[%emt 0:00:02]} 31. Nc5 {[%emt 0:00:22]} Bd5 {[%emt 0:00:10]} 32. Rcd1 {[%emt 0:00:24]} Nxb7 {[%emt 0:02:01]} 33. Rxd5 {[%emt 0:00:09]} exd5 {[%emt 0:00:01]} 34. Rxe7 {[%emt 0:00:01]} Nxc5 {[%emt 0:00:01]} 35. Re5 {[%emt 0:03:37]} Rd8 {[%emt 0:00:47]} 36. g3 {[%emt 0:00:05]} Na4 {[%emt 0:00:37]} 37. Kf2 {[%emt 0:00:27]} Kf8 {[%emt 0:02:24]} 38. Ke3 {[%emt 0:00:35]} d4+ {[%emt 0:00:03]} 39. Kd2 {[%emt 0:00:20]} Rd6 {[%emt 0:00:33]} 40. Bc4 {[%emt 0:00:36]} f6 {[%emt 0:01:24]} 41. Rd5 {[%emt 0:00:35]} Nb6 {[%emt 0:00:17]} 42. Rc5 {[%emt 0:00:01]} Ke7 {[%emt 0:00:33]} 43. Kd3 {[%emt 0:00:26]} Kd7 {[%emt 0:00:26]} 44. Bb3 {[%emt 0:00:22]} f5 {[%emt 0:00:10]} 45. Re5 {[%emt 0:00:52]} h6 {[%emt 0:00:08]} 46. Rc5 {[%emt 0:00:05]} h5 {[%emt 0:00:11]} 47. h4 {[%emt 0:00:31]} Na8 {[%emt 0:00:09]} 48. Rd5 {[%emt 0:00:46]} Nc7 {[%emt 0:00:13]} 49. Rxd6+ {[%emt 0:00:08]} Kxd6 {[%emt 0:00:01]} 50. b6 {[%emt 0:00:01] Kd5 Ke4+} 1-0

[Event "Shanghai COITCT 2019"]
[Site "Shanghai"]
[Date "2019.09.15"]
[Round "2.5"]
[White "Bai, Jinshi"]
[Black "Kobalia, Mikhail"]
[Result "1/2-1/2"]
[ECO "A07"]
[WhiteElo "2591"]
[BlackElo "2608"]
[Annotator "ChessBase"]
[PlyCount "95"]
[EventDate "2019.09.15"]
[EventType "team-tourn"]
[EventCountry "CHN"]
[SourceTitle "playchess.com"]
[Source "ChessBase"]
[SourceQuality "1"]
[TimeControl "1500+10"]

1. Nf3 {[%emt 0:00:00]} d5 {[%emt 0:00:00]} 2. g3 {[%emt 0:00:00]} c6 {[%emt 0:00:00]} 3. Bg2 {[%emt 0:00:00]} Bg4 {[%emt 0:00:00]} 4. O-O {[%emt 0:00:03]} Nf6 {[%emt 0:00:00]} 5. d3 {[%emt 0:00:12]} Nbd7 {[%emt 0:00:07]} 6. h3 {[%emt 0:00:06]} Bh5 {[%emt 0:00:03]} 7. c4 {[%emt 0:00:02]} Bxf3 {[%emt 0:01:10]} 8. Bxf3 {[%emt 0:00:03]} dxc4 {[%emt 0:00:02]} 9. dxc4 {[%emt 0:00:02]} Ne5 {[%emt 0:00:04]} 10. Nd2 {[%emt 0:00:21]} Nxf3+ {[%emt 0:00:30]} 11. Nxf3 {[%emt 0:00:02]} Qxd1 {[%emt 0:00:21]} 12. Rxd1 {[%emt 0:00:02]} g6 {[%emt 0:00:18]} 13. Be3 {[%emt 0:01:47]} Bg7 {[%emt 0:00:02]} 14. Rd3 {[%emt 0:00:03]} O-O {[%emt 0:02:07]} 15. Rad1 {[%emt 0:01:20]} Rfe8 {[%emt 0:00:02]} 16. g4 {[%emt 0:03:25]} b5 {[%emt 0:00:52]} 17. Rc1 {[%emt 0:01:26]} a6 {[%emt 0:02:12]} 18. Ne5 {[%emt 0:00:55]} Rac8 {[%emt 0:02:13]} 19. cxb5 {[%emt 0:01:15]} cxb5 {[%emt 0:00:02]} 20. Nc6 {[%emt 0:00:04]} Rc7 {[%emt 0:02:01]} 21. f3 {[%emt 0:02:26]} e6 {[%emt 0:01:21]} 22. Bf4 {[%emt 0:00:02]} e5 {[%emt 0:01:19]} 23. Bg5 {[%emt 0:03:21]} h6 {[%emt 0:00:42]} 24. Bxf6 {[%emt 0:00:11]} Bxf6 {[%emt 0:00:01]} 25. e4 {[%emt 0:01:33]} Re6 {[%emt 0:02:04]} 26. Rdc3 {[%emt 0:00:03]} Bg5 {[%emt 0:00:19]} 27. R1c2 {[%emt 0:00:02]} Rd6 {[%emt 0:01:41]} 28. Nb4 {[%emt 0:04:28]} Rxc3 {[%emt 0:00:39]} 29. bxc3 {[%emt 0:00:01]} Kf8 {[%emt 0:01:54]} 30. Nd5 {[%emt 0:00:09]} Rc6 {[%emt 0:00:07]} 31. Kf1 {[%emt 0:00:35]} Ke8 {[%emt 0:02:20]} 32. Ke2 {[%emt 0:00:02]} Kd7 {[%emt 0:00:03]} 33. Kd3 {[%emt 0:00:12]} Kd6 {[%emt 0:01:09]} 34. Nb4 {[%emt 0:00:48]} Rb6 {[%emt 0:00:13]} 35. Nd5 {[%emt 0:01:08]} Rc6 {[%emt 0:00:01]} 36. c4 {[%emt 0:00:03]} Rc5 {[%emt 0:01:03]} 37. Rc3 {[%emt 0:02:26]} bxc4+ {[%emt 0:00:51]} 38. Rxc4 {[%emt 0:00:02]} Rb5 {[%emt 0:00:02]} 39. Ra4 {[%emt 0:00:30]} a5 {[%emt 0:00:24]} 40. Nc3 {[%emt 0:00:43]} Rb2 {[%emt 0:00:29]} 41. Rxa5 {[%emt 0:00:03]} Rf2 {[%emt 0:00:03]} 42. Rd5+ {[%emt 0:01:29]} Kc6 {[%emt 0:00:23]} 43. Kc4 {[%emt 0:00:02]} Rxf3 {[%emt 0:00:01]} 44. Rc5+ {[%emt 0:00:08]} Kb7 {[%emt 0:00:19]} 45. Rb5+ {[%emt 0:00:11]} Kc6 {[%emt 0:00:03]} 46. Rc5+ {[%emt 0:00:03]} Kb7 {[%emt 0:00:12]} 47. Rb5+ {[%emt 0:00:25]} Kc6 {[%emt 0:00:09]} 48. Rc5+ {[%emt 0:00:15]} 1/2-1/2

[Event "Shanghai COITCT 2019"]
[Site "Shanghai"]
[Date "2019.09.15"]
[Round "2.6"]
[White "Murzin, Volodar"]
[Black "Wen, Yang"]
[Result "1/2-1/2"]
[ECO "C77"]
[WhiteElo "2433"]
[BlackElo "2586"]
[Annotator "ChessBase"]
[PlyCount "94"]
[EventDate "2019.09.15"]
[EventType "team-tourn"]
[EventCountry "CHN"]
[SourceTitle "playchess.com"]
[Source "ChessBase"]
[SourceQuality "1"]
[TimeControl "1500+10"]

1. e4 {[%emt 0:00:00]} e5 {[%emt 0:00:00]} 2. Nf3 {[%emt 0:00:00]} Nc6 {[%emt 0:00:00]} 3. Bb5 {[%emt 0:00:00]} a6 {[%emt 0:00:00]} 4. Ba4 {[%emt 0:00:00]} d6 {[%emt 0:00:00]} 5. O-O {[%emt 0:00:16]} Bd7 {[%emt 0:00:00]} 6. c3 {[%emt 0:00:59]} g6 {[%emt 0:00:12]} 7. d3 {[%emt 0:01:09]} Bg7 {[%emt 0:00:02]} 8. Nbd2 {[%emt 0:00:03]} Nf6 {[%emt 0:00:14]} 9. Re1 {[%emt 0:00:12]} O-O {[%emt 0:00:02]} 10. Nf1 {[%emt 0:00:04]} Kh8 {[%emt 0:00:41]} 11. h3 {[%emt 0:00:28]} Qe8 {[%emt 0:00:04]} 12. Bc2 {[%emt 0:00:26]} Nh5 {[%emt 0:03:21]} 13. d4 {[%emt 0:00:25]} f5 {[%emt 0:00:21]} 14. dxe5 {[%emt 0:03:20]} dxe5 {[%emt 0:00:04]} 15. Ne3 {[%emt 0:00:26]} Nf4 {[%emt 0:01:47]} 16. Nc4 {[%emt 0:04:03]} Rd8 {[%emt 0:02:55]} 17. Bxf4 {[%emt 0:01:38]} exf4 {[%emt 0:00:01]} 18. exf5 {[%emt 0:00:55]} Qf7 {[%emt 0:00:08]} 19. Qe2 {[%emt 0:00:35]} Bxf5 {[%emt 0:02:05]} 20. Bxf5 {[%emt 0:01:02]} Qxf5 {[%emt 0:00:06]} 21. Ncd2 {[%emt 0:02:29]} Rd7 {[%emt 0:01:20]} 22. Nb3 {[%emt 0:01:51]} Re7 {[%emt 0:06:38]} 23. Qf1 {[%emt 0:01:01]} Rfe8 {[%emt 0:01:45]} 24. Rxe7 {[%emt 0:00:17]} Rxe7 {[%emt 0:00:02]} 25. Re1 {[%emt 0:00:08]} Bf6 {[%emt 0:00:23]} 26. Rxe7 {[%emt 0:00:16]} Bxe7 {[%emt 0:00:01]} 27. Nbd4 {[%emt 0:00:43]} Nxd4 {[%emt 0:00:02]} 28. Nxd4 {[%emt 0:00:01]} Qe4 {[%emt 0:00:11]} 29. Qe2 {[%emt 0:01:08]} Qxe2 {[%emt 0:02:30]} 30. Nxe2 {[%emt 0:00:02]} Bd6 {[%emt 0:00:08]} 31. Kf1 {[%emt 0:00:27]} Kg7 {[%emt 0:00:04]} 32. Nd4 {[%emt 0:00:09]} Kf6 {[%emt 0:00:28]} 33. Ke2 {[%emt 0:00:03]} Bc5 {[%emt 0:01:11]} 34. Nb3 {[%emt 0:00:10]} Bb6 {[%emt 0:00:13]} 35. Nd2 {[%emt 0:00:01]} Kf5 {[%emt 0:00:10]} 36. a4 {[%emt 0:00:41]} g5 {[%emt 0:00:12]} 37. f3 {[%emt 0:00:31]} Be3 {[%emt 0:01:09]} 38. g4+ {[%emt 0:01:08]} Ke6 {[%emt 0:00:19]} 39. Ne4 {[%emt 0:00:06]} h6 {[%emt 0:00:02]} 40. Kd3 {[%emt 0:00:01]} b5 {[%emt 0:00:23]} 41. axb5 {[%emt 0:00:46]} axb5 {[%emt 0:00:01]} 42. c4 {[%emt 0:00:43]} b4 {[%emt 0:00:15]} 43. c5 {[%emt 0:02:25]} Kd5 {[%emt 0:00:01]} 44. b3 {[%emt 0:00:26]} Bxc5 {[%emt 0:01:08]} 45. Nd2 {[%emt 0:00:24]} Bd4 {[%emt 0:00:11]} 46. Nc4 {[%emt 0:00:06]} Bc3 {[%emt 0:00:26]} 47. Na5 {[%emt 0:00:10]} Bf6 {[%emt 0:00:15]} 1/2-1/2